Cogmind - Beta 16.1 @@@ ROGUE MODE // 2026.04.24 @ 01:30:28 Player: coopco Result: Destroyed by Piercing Trap Performance ------------- Evolutions (0) 0 Regions Visited (3) 600 Robots Destroyed (20) 100 Value Destroyed (650) 650 Prototype IDs (0) 0 Alien Tech Used (0) 0 Bonus (0) 0 TOTAL SCORE: 1350 Bonus ------- None Cogmind --------- Core Integrity 0/250 Matter 137/300 Energy 249/250 System Corruption 0% Temperature Cool (0) Movement Rolling (120) Ox1 Location -10/Subcaves Parts ------- > --- POWER (1) -------- Ion Engine > --- PROPULSION (2) --- Aluminum Leg Subdweller Monowheel > --- UTILITY (2) ------ Large Storage Unit Subdweller Optics > --- WEAPON (2) ------- Shotgun Grenade Launcher > --- INVENTORY (15) --- Light Angular Momentum Engine Aluminum Leg Aluminum Leg Aluminum Leg Carbon-fiber Leg Makeshift Leg Small Storage Unit High-capacity Storage Unit Cobbler Unit Subdweller Beam Cannon Shotgun Peak State ------------ > --- POWER ------------ Light Angular Momentum Engine > --- PROPULSION ------- Light Treads Light Treads > --- UTILITY ---------- Small Storage Unit Large Storage Unit > --- WEAPON ----------- Particle Gun Assault Rifle > --- INVENTORY -------- Ion Engine Aluminum Leg Aluminum Leg Aluminum Leg Aluminum Leg Aluminum Leg Carbon-fiber Leg High-capacity Storage Unit Visual Processing Unit Particle Gun Particle Gun Assault Rifle Shotgun Shotgun Grenade Launcher [Rating: 14] Favorites ----------- Power Ion Engine Engine Ion Engine Propulsion Light Treads Treads Light Treads Leg Carbon-fiber Leg Wheel Subdweller Monowheel Utility Large Storage Unit Device Subdweller Optics Storage Large Storage Unit Processor Visual Processing Unit Weapon Assault Rifle Energy Gun Medium Laser Ballistic Gun Assault Rifle Launcher Grenade Launcher Build | -11 -10 -10 -10 ------- Run | Yrd Mat Min Sub Slots Evolved . | . . . . Power . | . . . . Propulsion . | . . . . Utility . | . . . . Weapon . | . . . . Parts Attached 22 | 5 3 5 9 Power 3 | 1 . 1 1 Engine 3 | 1 . 1 1 Core . | . . . . Reactor . | . . . . Propulsion 6 | 1 1 2 2 Treads 2 | 1 1 . . Leg 3 | . . 2 1 Wheel 1 | . . . 1 Hover . | . . . . Flight . | . . . . Utility 4 | 1 1 . 2 Device 1 | . . . 1 Storage 2 | 1 1 . . Processor 1 | . . . 1 Hackware . | . . . . Protection . | . . . . Artifact . | . . . . Weapon 9 | 2 1 2 4 Energy Gun 4 | 1 1 1 1 Energy Cannon . | . . . . Ballistic Gun 4 | 1 . 1 2 Ballistic Cannon . | . . . . Launcher 1 | . . . 1 Special Weapon . | . . . . Impact Weapon . | . . . . Slashing Weapon . | . . . . Piercing Weapon . | . . . . Special Melee Weapon . | . . . . Unidentified Prototypes . | . . . . Parts Lost 9 | . . 6 3 Power 1 | . . 1 . Propulsion 3 | . . 2 1 Utility . | . . . . Weapon 5 | . . 3 2 Highest Loss Streak 5 | . . 5 2 To Critical Strikes . | . . . . Average Backups 11 | 3 9 14 9 Power 1 | . 1 1 1 Propulsion 4 | 2 4 5 4 Utility 1 | . . 2 2 Weapon 3 | . 3 5 1 Tool/Special . | . . . . Unused Backups 11 | . 2 3 6 Power 1 | . . . 1 Propulsion 5 | . . 1 4 Utility 1 | . . . 1 Weapon 4 | . 2 2 . Tool/Special . | . . . . Average Slot Usage (%) 93 | . 95 94 91 Engine 10 | . 14 11 6 Treads 14 | . 26 22 . Leg 10 | . . 5 23 Wheel 1 | . . . 4 Storage 22 | . 25 28 14 Processor 4 | . . . 11 Energy Gun 9 | . 14 11 5 Ballistic Gun 14 | . 14 14 15 Launcher 2 | . . . 7 Peak Build Rating 14 | 5 9 14 14 Average Rating 10 | 4 7 11 12 On Entrance 6 | . 5 9 11 Avg Prop Armor Cover (%) 8 | . . . 8 Naked Turns . | . . . . Heaviest Build 39 | 13 34 39 33 Greatest Support 40 | 20 40 40 30 Greatest Overweight (x) 1 | . . 1 1 Average Overweight (x) . | . . . . Largest Inventory Capacity 15 | 8 15 15 15 Average Capacity 14 | 7 13 15 15 Most Carried 15 | 5 15 15 12 Average Carried 11 | 3 9 14 9 Final Capacity 15 | 8 15 15 15 Final Carried 15 | 5 15 12 12 Class Distribution -------------------- 100% | Mutant Dominant Class ---------------- Mutant | -10/Materials Mutant | -10/Mines Mutant | -10/Subcaves Resources | -11 -10 -10 -10 ----------- Run | Yrd Mat Min Sub Matter Collected 577 | 223 117 103 134 Remotely . | . . . . Salvage Created 629 | . 165 286 178 Parts 37 | . 6 17 14 Haulers Intercepted . | . . . . Recyclers Shooed . | . . . . Parts Field Recycled . | . . . . Retrieved Matter . | . . . . Parts Self-Destructed 1 | . . . 1 Prevented . | . . . . Parts Restored . | . . . . Kills | -11 -10 -10 -10 ------- Run | Yrd Mat Min Sub Combat Hostiles Destroyed 21 | . 4 10 7 Guns 15 | . 3 10 2 AOE 5 | . . . 5 Classes Destroyed 5 | . 1 3 1 Swarmer 5 | . . 5 . Grunt 6 | . 4 2 . Sentry 2 | . . 2 . Subdweller 7 | . . . 7 Assembled 1 | . . 1 . Best Kill Streak 3 | . 2 3 2 Combat Bots Only 3 | . 2 3 2 Max Kills in Single Turn 2 | . 1 2 1 Gunslinging 1 | . . 1 . Exploded 1 | . . . 1 Melee . | . . . . Uniques/NPCs Destroyed . | . . . . Combat | -11 -10 -10 -10 -------- Run | Yrd Mat Min Sub Hostile Shots Fired 87 | . 26 33 28 Missed 23 | . 8 5 10 Hits 64 | . 18 28 18 Projectile 64 | . 18 28 18 AOE 12 | . . 11 1 Critical Strikes 1 | . 1 . . Damage Taken 1501 | . 239 632 630 Core 257 | . 13 130 114 Absorbed by Shields . | . . . . Core Remaining (%) 100 | 100 . . . Volleys Fired 64 | . 20 24 20 Largest 2 | . 2 2 2 Hottest 85 | . 70 85 46 Shots Fired 106 | . 40 41 25 Gun 91 | . 40 41 10 Cannon . | . . . . Launcher 15 | . . . 15 Special . | . . . . Kinetic 54 | . 20 24 10 Thermal 37 | . 20 17 . Explosive 15 | . . . 15 Electromagnetic . | . . . . Robot Hit Streak 17 | . 17 11 7 Robot Miss Streak 4 | . 4 2 1 Penetration Max . | . . . . Secondary Targets 1 | . . 1 . Max Gunslinging Chain 1 | . . 1 . Shots Hit Robots 71 | . 30 28 13 Core Hits 41 | . 7 15 19 Critical Kills . | . . . . Critical Parts Destroyed . | . . . . Critical Strikes 6 | . 3 3 . Burn 6 | . 3 3 . Melee Attacks . | . . . . Impact . | . . . . Slashing . | . . . . Piercing . | . . . . Sneak Attacks . | . . . . Combat Hostiles . | . . . . Follow-up Attacks . | . . . . Damage Inflicted 1513 | . 366 382 765 Guns 850 | . 366 382 102 Cannons . | . . . . Explosions 663 | . . . 663 Melee . | . . . . Ramming . | . . . . Kinetic 457 | . 155 200 102 Thermal 393 | . 211 182 . Explosive 663 | . . . 663 Electromagnetic . | . . . . Impact . | . . . . Slashing . | . . . . Piercing . | . . . . Highest Corruption . | . . . . Average Corruption . | . . . . Corruption Purged . | . . . . Corruption Blocked . | . . . . Overload Shots . | . . . . Overflow Damage . | . . . . Projectiles . | . . . . Explosions . | . . . . Melee . | . . . . Knockbacks . | . . . . Impact . | . . . . Kinetic . | . . . . Secondary . | . . . . Self-Inflicted Damage . | . . . . Shots . | . . . . Rammed . | . . . . Targets Rammed . | . . . . Kicked . | . . . . Crushed . | . . . . Highest Temperature 171 | . 171 108 . Average Temperature 46 | . 61 29 . Received Heat Transfer 309 | . 153 48 108 Siege Activations . | . . . . Martial Activations . | . . . . Shielding Activations . | . . . . Robots Disrupted . | . . . . Combat Hostiles . | . . . . Robots Corrupted . | . . . . Combat Hostiles . | . . . . Parts Fried . | . . . . Impact Corruptions . | . . . . Robots Melted 1 | . 1 . . Combat Hostiles 1 | . 1 . . Parts Melted 2 | . . 2 . Heat Transferred 1517 | . 851 666 . Parts Sabotaged . | . . . . Parts Stolen . | . . . . Parts Stripped . | . . . . Power Chain Reactions . | . . . . Alert | -11 -10 -10 -10 ------- Run | Yrd Mat Min Sub Maximum Alert Level . | . . . . Low Security (%) 100 | 100 100 100 . Level 1 . | . . . . Level 2 . | . . . . Level 3 . | . . . . Level 4 . | . . . . Level 5 . | . . . . High Security . | . . . . Max Security . | . . . . Peak Influence 60 | . 55 60 . Initial . | . . . . Average 12 | . 12 12 . Influence Increases 329 | . 129 200 . Destroy 0b10 Robot/C 260 | . 80 180 . Destroy Leader 50 | . 30 20 . Successful Hack 4 | . 4 . . Lose Combat Pursuer 15 | . 15 . . Influence Decreases 329 | . 129 200 . Time Decay 329 | . 129 200 . Squads Dispatched 3 | . 3 . . Investigation 2 | . 2 . . Extermination . | . . . . Reinforcement 1 | . 1 . . Assault . | . . . . Garrison . | . . . . Intercept . | . . . . Searches Triggered . | . . . . Construction Impeded . | . . . . Haulers Reinforced . | . . . . Active Scanning Responses . | . . . . Cargo Convoy Interrupts . | . . . . Stealth | -11 -10 -10 -10 --------- Run | Yrd Mat Min Sub Distress Signals 1 | . . 1 . Communications Jammed . | . . . . Distress Signals . | . . . . Times Spotted 26 | . 7 12 7 Peak Tracking Total 4 | . 4 2 3 Tactical Retreats 1 | . 1 . . Traps | -11 -10 -10 -10 ------- Run | Yrd Mat Min Sub Traps Triggered 5 | . 2 . 3 Indirectly . | . . . . Trap Hack Attempts . | . . . . Triggered . | . . . . Disarmed . | . . . . Reprogrammed . | . . . . Reused . | . . . . Traps Extracted . | . . . . Installed . | . . . . Triggered . | . . . . Machines | -11 -10 -10 -10 ---------- Run | Yrd Mat Min Sub Machines Disabled . | . . . . Max in Single Turn . | . . . . Machines Repaired . | . . . . Machines Dismantled . | . . . . Machines Sabotaged . | . . . . Overloaded Fab Kills . | . . . . Hacking | -11 -10 -10 -10 --------- Run | Yrd Mat Min Sub Machines Accessed 2 | . 2 . . Terminals 2 | . 2 . . Fabricators . | . . . . Repair Stations . | . . . . Recycling Units . | . . . . Scanalyzers . | . . . . Garrison Access . | . . . . Total Hacks 4 | . 4 . . Successful 2 | . 2 . . Failed 2 | . 2 . . Catastrophic 1 | . 1 . . Database Lockouts . | . . . . Manual . | . . . . Terminals 4 | . 4 . . Fabricators . | . . . . Repair Stations . | . . . . Recycling Units . | . . . . Scanalyzers . | . . . . Garrison Access . | . . . . Terminal Hacks 2 | . 2 . . Locate Traps 1 | . 1 . . Dispatch Records 1 | . 1 . . Fabricator Hacks . | . . . . Repair Station Hacks . | . . . . Recycling Unit Hacks . | . . . . Scanalyzer . | . . . . Garrison Access Hacks . | . . . . Unauthorized Hacks . | . . . . Terminals . | . . . . Fabricators . | . . . . Repair Stations . | . . . . Recycling Units . | . . . . Scanalyzers . | . . . . Garrison Access . | . . . . Data Cores Recovered . | . . . . Used . | . . . . Hacking Detections 2 | . 2 . . Full Trace Events . | . . . . Feedback Events . | . . . . Feedback Blocked . | . . . . Robot Schematics Acquired . | . . . . Robots Built . | . . . . Authchips . | . . . . Time . | . . . . Total Robot Build Rating . | . . . . Part Schematics Acquired . | . . . . Parts Built . | . . . . Authchips . | . . . . Time . | . . . . Total Part Build Rating . | . . . . Part Studies Acquired . | . . . . Parts Repaired . | . . . . Time . | . . . . Parts Recycled . | . . . . Recycled Matter . | . . . . Retrieved Matter . | . . . . Retrieved Components . | . . . . Parts Scanalyzed . | . . . . Part Schematics Acquired . | . . . . Parts Damaged . | . . . . Bothacking | -11 -10 -10 -10 ------------ Run | Yrd Mat Min Sub Used RIF Installer . | . . . . Robots Hacked . | . . . . Non-combat . | . . . . Combat . | . . . . Robot Hacks Applied . | . . . . Relay Couplers Released . | . . . . Fabnet Peak Effective % . | . . . . Robots Rewired . | . . . . Allies Hacked . | . . . . Hacks Repelled . | . . . . Allies | -11 -10 -10 -10 -------- Run | Yrd Mat Min Sub Total Allies . | . . . . Largest Group . | . . . . Highest-Rated Group . | . . . . Highest-Rated Ally . | . . . . Total Orders . | . . . . Ally Attacks . | . . . . Total Damage . | . . . . Kills . | . . . . Allies Corrupted . | . . . . Allies Melted . | . . . . Intel | -11 -10 -10 -10 ------- Run | Yrd Mat Min Sub Active Infowar (turns) 867 | . . . 867 Optics 867 | . . . 867 Robot Analysis Total . | . . . . Derelict Logs Recovered 2 | . . . 2 Drone Launches . | . . . . Drone Recoveries . | . . . . Exploration | -11 -10 -10 -10 ------------- Run | Yrd Mat Min Sub Turns Passed 2377 | 75 564 870 868 Spaces Moved 1494 | 43 297 517 637 Core 5 | 5 . . . Treads 729 | 38 297 394 . Legs 517 | . . 123 394 Wheels 243 | . . . 243 Hover . | . . . . Flight . | . . . . Fastest Speed 50 | 50 160 120 120 Average Speed 141 | 147 160 150 125 Slowest Speed 240 | 160 160 240 190 Overloaded Moves . | . . . . Propulsion Burnouts . | . . . . Robots Hopped . | . . . . Potential Cave-ins . | . . . . Cave-ins Triggered . | . . . . Exploration Rate (%) 43 | 3 60 71 39 Regions Visited 3 Branch Regions 2 Pre-discovered Areas . | . . . . Known Exits Taken . | . . . . Unknown Exits Taken 3 | 1 1 1 . Scrap Searched . | . . . . Spaces Dug . | . . . . Terrain Destroyed 81 | . . . 81 Melee . | . . . . Projectile . | . . . . AOE 81 | . . . 81 Terrain Rammed . | . . . . Walls Destroyed . | . . . . Machines Disabled . | . . . . Actions | -11 -10 -10 -10 --------- Run | Yrd Mat Min Sub Total 1643 | 52 346 569 676 Wait 27 | . 8 16 3 Move 1491 | 42 296 516 637 Hop . | . . . . Pick Up 28 | 5 14 4 5 Fast Attach 7 | 5 2 . . Attach 10 | . 1 4 5 Detach . | . . . . Swap 8 | . 1 1 6 Drop 8 | . 4 4 . Fire 64 | . 20 24 20 Melee . | . . . . Ram . | . . . . Kick . | . . . . Crush . | . . . . Escape Stasis . | . . . . Rewire . | . . . . Trap . | . . . . Miscellaneous . | . . . . Route ------- -11/Scrapyard -10/Materials (discovered 2 exits: [*Mat] / [*Min]) -10/Mines (discovered 3 exits: [*Mat x2] / [*Sub]) -10/Subcaves (discovered 1 exit: [*Mat]) History --------- Turn | Location | Event 8 | -11/Scrapyard | Discovered new exit (range 14) 76 | -11/Scrapyard | Entered Materials 77 | -10/Materials | Met a group of wandering Federalists 301 | -10/Materials | Build established: Mutant 446 | -10/Materials | Discovered new exit (range 5) 599 | -10/Materials | Discovered new exit (range 9) 640 | -10/Materials | Entered Mines 712 | -10/Mines | Discovered new exit (range 8) 1002 | -10/Mines | Joined a pair of Derelicts in attacking an 0b10 outpost 1257 | -10/Mines | Discovered new exit (range 5) 1319 | -10/Mines | Assembled infested the area 1347 | -10/Mines | Core integrity fell below 50% 1375 | -10/Mines | Lost 5 parts (1p2n2w) 1504 | -10/Mines | Discovered new exit (range 6) 1510 | -10/Mines | Entered Subcaves 1511 | -10/Subcaves | Approached by a straggling Scientist 1512 | -10/Subcaves | Discovered new exit (range 8) 1523 | -10/Subcaves | Shifting Twisted Machinery released Flamer 1525 | -10/Subcaves | Shifting Twisted Machinery released Sub. Power Source 1860 | -10/Subcaves | Ambushed by Subdwellers from Twisted Machinery 1860 | -10/Subcaves | Ambushed by Subdweller buried in earth 1861 | -10/Subcaves | Core integrity fell below 20% 2038 | -10/Subcaves | Ambushed by Subdwellers from Twisted Machinery 2142 | -10/Subcaves | Learned 8 Materials zone layouts 2150 | -10/Subcaves | Shifting Twisted Machinery released Mak. Leg 2169 | -10/Subcaves | Shifting Twisted Machinery released Sub. Beam Cannon 2378 | -10/Subcaves | Destroyed by Piercing Trap Last Messages --------------- 02142_ Acquired derelict log, extracted data. Data stored: Materials zone layouts (x8). 02149_ Acquired 13 matter. Mak. Leg falls loose from the Twisted Machinery. 02159_ Acquired Mak. Leg. 02168_ Acquired 11 matter. Sub. Beam Cannon falls loose from the Twisted Machinery. 02211_ EH-86L(O) collects matter. 02214_ EH-86L(O) puts together Sub. Optics. 02220_ Acquired Sub. Optics. 02221_ Discarded Visual Processing Unit. 02224_ EH-86L(O) collects matter. 02243_ Acquired 13 matter. 02254_ EH-86L(O) puts together Shrapnel Trap. 02352_ Acquired Sub. Beam Cannon. 02354_ Acquired Cobbler Unit. 02378_ Triggered Piercing Trap. 02378_ Spikes shoot up from the floor. 02378_ Critical hit (Impale). Map ----- +----------------------------------------------------+ | ????????????????## ###????????????????????## | | ???????????????## ""##???????????????????### | | ???????????????#"" " #???????????????????# ## | | ???????????????# " ="##???????????????????# | | ???????????????#""* "#?###????????????????## | | ???????????????## "#?# ##????????????????## # | | ???????????????#" ### #????????????????### # | | ???????????????## " ## #????????????????# # | | ???????????????#" "## #????????????????## " | | ???????????????##" #????????????????# """ " | | ????????????????#"" ^ #????????????????#" ""# | | ????????????????###" #????????????????### "## | | ??????????????????## #??????????????????## "" | | ???????????????????# ^#???????????????????# | | ???????????????????## #???????????????????## | | ????????????????????#######??????????#####?????## | | ???????????????????????????###?????### # ######### | | ???????????????????????????< ##???## "" ### | | ??????????????????????????? <"#???# ## " "" ## | | ???????????????????????????< <#???## ##" " ## | | ??????????????????????????< <#???## #### ### | | ?????????????????????????? < #??## #### #?## | | ?????????????????????????? <<#?## "# ##??# | | ????????????????????????##< < #?#"" "## #???# | | ???????????????????######< <<<#?#"" ##### ##### | | ???????????????????# #@ <#??# "" ##### | | ???????????????????## <#??# ]""""#" # ### | | ???????????????????#" ## ##??# """"" ###### | | ?????????????????### "#######?# ""#"[" ##### | | ??????????????#### < ### #?# ""# | | ??????????????# #### " "" | | ??????????????# #### ##[ # # | | ?????????????## # ### ### | | ?????????????# #?# ##?# | | ????????# # # ##?## ##### | | ????????# #####???### ## | | ???????# ###### #????????##### | | ??????"" | ###????## ##????????????# | | ??????""% ## ????????####?????????????## | | ?????? " ??#" ??????????????????????????# | | ??????#" ???#" ??????????????????????????# | | ???????#???#"" ??????????????????????????# | | ???????????#"" ??????????????????????????# | | ???????????## ??????????????????????????#### | | ????????????##### ??????????????????????????????# | | ????????????????# ??????????????????????????????# | | ????????????????# ??????????????????????????????# | | ?????????????????????????????????????????????????# | | ?????????????????????????????????????????????????? | | ?????????????????????????????????????????????????? | +----------------------------------------------------+ Best States ------------- Heat Dissipation 25 Energy Generation 18 Energy Capacity 250 Matter Stores 300 Matter Capacity 300 Sight Range 21 Terrain Scan Density 10 Evasion (%) 55 Recoil Reduction 2 Item Schematics ----------------- None Robot Schematics ------------------ None Fabricated ------------ Nothing Repaired ---------- Nothing Studied --------- None Alien Tech Used ----------------- None Achievements -------------- None Challenges ------------ None Game ------ Seed PhysicsServoRedirector Manual? 0 Play Time 00:19:11 Cumulative 17.3 hours Start 2026.04.24 @ 01:13:41 End 2026.04.24 @ 01:30:28 Sessions 1 Manual Loads 0 Difficulty Rogue Special Mode None Game No. 25 Rogue 25 Adventurer 0 Explorer 0 Win Type - Total 0 Types 0/0/0/0/0/0/0/0/0/0 Lore% 12 Gallery% 24 Achievement% 22 Wizard Run 0 Options --------- Layout 1 ASCII 0 Keyboard 0 Movement Mouse Keybinds 0 Fullscreen 2 Font 24/Smallcaps Map View 50x35 Zoom Use 0% Tactical HUD 1 Map Filters NONE Filters NONE Steam 1 RUN: 77893505-a8e5-49ee-9cd1-5080d6922c83